[Event "8th Mersin Open 2024"]
[Site "Mersin"]
[Date "2024.11.13"]
[Round "6"]
[White "Mahmudzade, Yunis"]
[Black "Bayramov, Vugar"]
[Result "1/2-1/2"]
[ECO "D15"]
[WhiteElo "2065"]
[BlackElo "2133"]
[Annotator "NA RC"]
[PlyCount "105"]
[EventDate "2024.11.10"]
[EventType "swiss"]
[EventCountry "TUR"]
[SourceTitle "playchess.com"]
[Source "ChessBase"]
[SourceQuality "1"]
[TimeControl "5400+30"]

1. d4 {[%emt 0:01:00]} Nf6 {[%emt 0:01:00]} 2. Nf3 {[%emt 0:00:30]} d5 {[%emt 0:01:30]} 3. c4 {[%emt 0:00:30]} c6 {[%emt 0:00:30]} 4. Nc3 {[%emt 0:00:30]} a6 {[%emt 0:00:00]} 5. a4 {[%emt 0:00:30]} Bf5 {[%emt 0:02:00]} 6. cxd5 {[%emt 0:00:30]} cxd5 {[%emt 0:01:30]} 7. Bf4 {[%emt 0:05:30]} Nc6 {[%emt 0:01:30]} 8. Nh4 {[%emt 0:06:30]} Bg6 {[%emt 0:03:30]} 9. Nxg6 {[%emt 0:00:30]} hxg6 {[%emt 0:00:30]} 10. e3 {[%emt 0:01:30]} e6 {[%emt 0:00:30]} 11. Be2 {[%emt 0:01:30]} Be7 {[%emt 0:06:30]} 12. h3 {[%emt 0:03:30]} Rc8 {[%emt 0:03:30]} 13. O-O {[%emt 0:01:30]} O-O {[%emt 0:00:30]} 14. Rb1 {[%emt 0:03:30]} Qa5 {[%emt 0:01:30]} 15. h4 {[%emt 0:02:30]} Rfd8 {[%emt 0:10:30]} 16. Bf3 {[%emt 0:03:30]} b5 {[%emt 0:03:30]} 17. axb5 {[%emt 0:00:30]} axb5 {[%emt 0:00:30]} 18. Ra1 {[%emt 0:00:30]} Qb6 {[%emt 0:00:30]} 19. Qd3 {[%emt 0:00:30]} Na7 {[%emt 0:00:30]} 20. Bg5 {[%emt 0:00:30]} b4 {[%emt 0:00:30]} 21. Ne2 {[%emt 0:05:30]} Qb5 {[%emt 0:14:30]} 22. Qd2 {[%emt 0:09:30]} Nc6 {[%emt 0:01:30]} 23. Nf4 {[%emt 0:06:30]} Ne4 {[%emt 0:07:30]} 24. Bxe4 {[%emt 0:00:00]} dxe4 {[%emt 0:00:00]} 25. Bxe7 {[%emt 0:01:00]} Nxe7 {[%emt 0:00:00]} 26. Rac1 {[%emt 0:06:30]} Nd5 {[%emt 0:01:30]} 27. Nxd5 {[%emt 0:06:30]} exd5 {[%emt 0:00:30]} 28. b3 {[%emt 0:00:30]} Kh7 {[%emt 0:05:30]} 29. Rfd1 {[%emt 0:01:30]} f5 {[%emt 0:02:30]} 30. g3 {[%emt 0:01:30]} Kh6 {[%emt 0:00:30]} 31. Kg2 {[%emt 0:01:30]} Kh5 {[%emt 0:07:30]} 32. Kh2 {[%emt 0:04:30]} g5 {[%emt 0:00:30]} 33. hxg5 {[%emt 0:00:30]} Kxg5 {[%emt 0:01:30]} 34. Kg2 {[%emt 0:04:30]} Rc3 {[%emt 0:05:17]} 35. Qa2 {[%emt 0:05:36]} Rdc8 {[%emt 0:04:12]} 36. Rxc3 {[%emt 0:03:10]} bxc3 {[%emt 0:00:30]} 37. Qa7 {[%emt 0:00:00]} Kf6 {[%emt 0:00:05]} 38. Rc1 {[%emt 0:00:30]} c2 {[%emt 0:02:23]} 39. Qa3 {[%emt 0:00:45]} Ke6 {[%emt 0:00:54]} 40. Qa7 {[%emt 0:02:19]} Kf6 {[%emt 0:02:04]} 41. Qa3 {[%emt 0:00:11]} Qc6 {[%emt 0:02:09]} 42. b4 {[%emt 0:02:06]} Qb5 {[%emt 0:00:34]} 43. Qa5 {[%emt 0:02:32]} Qe2 {[%emt 0:01:27]} 44. Qxd5 {[%emt 0:02:10]} Qf3+ {[%emt 0:01:20]} 45. Kg1 {[%emt 0:00:02]} Qd1+ {[%emt 0:02:10]} 46. Kg2 {[%emt 0:00:08]} Rh8 {[%emt 0:04:13]} 47. Qe5+ {[%emt 0:02:19]} Kg6 {[%emt 0:00:30]} 48. Qe6+ {[%emt 0:00:00]} Kg5 {[%emt 0:00:43]} 49. Qe7+ {[%emt 0:00:10]} Kg6 {[%emt 0:00:29]} 50. Qe6+ {[%emt 0:00:16]} Kg5 {[%emt 0:01:24]} 51. Qe7+ {[%emt 0:00:06]} Kh6 {[%emt 0:00:33]} 52. Qh4+ {[%emt 0:00:30]} Kg6 {[%emt 0:00:30]} 53. Rxd1 {[%emt 0:00:30]} 1/2-1/2

[Event "8th Mersin Open 2024"]
[Site "Mersin"]
[Date "2024.11.13"]
[Round "6"]
[White "Primbetov, Kazbek"]
[Black "Aliyev, Ravan"]
[Result "0-1"]
[ECO "A62"]
[WhiteElo "2059"]
[BlackElo "2338"]
[Annotator "RC"]
[PlyCount "134"]
[EventDate "2024.11.10"]
[EventType "swiss"]
[EventCountry "TUR"]
[SourceTitle "playchess.com"]
[Source "ChessBase"]
[SourceQuality "1"]
[TimeControl "5400+30"]

1. d4 {[%emt 0:02:00]} Nf6 {[%emt 0:01:00]} 2. c4 {[%emt 0:00:30]} c5 {[%emt 0:00:30]} 3. d5 {[%emt 0:00:00]} g6 {[%emt 0:00:30]} 4. Nc3 {[%emt 0:00:00]} Bg7 {[%emt 0:00:30]} 5. Nf3 {[%emt 0:01:30]} O-O {[%emt 0:00:30]} 6. g3 {[%emt 0:01:30]} d6 {[%emt 0:00:00]} 7. Bg2 {[%emt 0:00:00]} e6 {[%emt 0:00:00]} 8. O-O {[%emt 0:00:00]} exd5 {[%emt 0:00:30]} 9. cxd5 {[%emt 0:00:30]} a6 {[%emt 0:01:30]} 10. a4 {[%emt 0:00:30]} Re8 {[%emt 0:00:00]} 11. Bf4 {[%emt 0:05:30]} Nh5 {[%emt 0:00:00]} 12. Bg5 {[%emt 0:03:30]} Qc7 {[%emt 0:00:30]} 13. Qc1 {[%emt 0:15:30]} b6 {[%emt 0:02:30]} 14. Bh6 {[%emt 0:00:30]} Bh8 {[%emt 0:00:00]} 15. Ng5 {[%emt 0:18:30]} Nd7 {[%emt 0:14:00]} 16. g4 {[%emt 0:00:30]} Nhf6 {[%emt 0:00:30]} 17. h3 {[%emt 0:16:30]} Ne5 {[%emt 0:14:30]} 18. Nge4 {[%emt 0:02:30]} Nxe4 {[%emt 0:06:30]} 19. Nxe4 {[%emt 0:00:30]} f5 {[%emt 0:00:30]} 20. gxf5 {[%emt 0:10:50]} Bxf5 {[%emt 0:00:30]} 21. Ng3 {[%emt 0:00:11]} Bd7 {[%emt 0:09:30]} 22. Bd2 {[%emt 0:05:52]} b5 {[%emt 0:07:30]} 23. f4 {[%emt 0:06:16]} Nc4 {[%emt 0:02:30]} 24. Bc3 {[%emt 0:00:01]} Bxc3 {[%emt 0:01:30]} 25. bxc3 {[%emt 0:00:29]} Re3 {[%emt 0:01:30]} 26. Rf3 {[%emt 0:00:20]} Rae8 {[%emt 0:02:30]} 27. axb5 {[%emt 0:00:09]} Bxb5 {[%emt 0:03:30]} 28. f5 {[%emt 0:02:49]} Qf7 {[%emt 0:02:30]} 29. Kh2 {[%emt 0:02:28]} h5 {[%emt 0:06:30]} 30. fxg6 {[%emt 0:00:58]} Qxg6 {[%emt 0:03:30]} 31. Qg1 {[%emt 0:00:15]} Kh7 {[%emt 0:07:21]} 32. Qf2 {[%emt 0:04:14]} Rxf3 {[%emt 0:07:21]} 33. Bxf3 {[%emt 0:00:46]} Rf8 {[%emt 0:00:01]} 34. Rg1 {[%emt 0:00:20]} Ne5 {[%emt 0:00:43]} 35. Qe3 {[%emt 0:00:19]} Nxf3+ {[%emt 0:05:17]} 36. exf3 {[%emt 0:00:02]} Rg8 {[%emt 0:00:00]} 37. Qf4 {[%emt 0:02:08]} Rg7 {[%emt 0:02:09]} 38. Qh4 {[%emt 0:00:23]} Qg5 {[%emt 0:00:57]} 39. Qe4+ {[%emt 0:00:01]} Qg6 {[%emt 0:00:09]} 40. Qh4 {[%emt 0:00:47]} Qg5 {[%emt 0:00:29]} 41. Qe4+ {[%emt 0:00:47]} Kh8 {[%emt 0:00:14]} 42. f4 {[%emt 0:00:23]} Qg6 {[%emt 0:00:33]} 43. f5 {[%emt 0:00:32]} Qg5 {[%emt 0:00:26]} 44. Ne2 {[%emt 0:00:36]} Qf6 {[%emt 0:01:15]} 45. Rxg7 {[%emt 0:00:30]} Kxg7 {[%emt 0:00:30]} 46. Nf4 {[%emt 0:00:30]} Qe5 {[%emt 0:00:30]} 47. Qg2+ {[%emt 0:00:30]} Kf8 {[%emt 0:00:30]} 48. Qg5 {[%emt 0:00:30]} Bd7 {[%emt 0:00:00]} 49. Qd8+ {[%emt 0:00:52]} Be8 {[%emt 0:00:00]} 50. Qg5 {[%emt 0:00:00]} Bd7 {[%emt 0:00:21]} 51. Qd8+ {[%emt 0:00:30]} Be8 {[%emt 0:00:01]} 52. Qg5 {[%emt 0:00:00]} Bf7 {[%emt 0:00:43]} 53. Qd8+ {[%emt 0:00:34]} Kg7 {[%emt 0:01:00]} 54. Qg5+ {[%emt 0:00:10]} Kh7 {[%emt 0:00:03]} 55. Kg1 {[%emt 0:01:26]} Qg7 {[%emt 0:01:25]} 56. h4 {[%emt 0:00:37]} a5 {[%emt 0:00:30]} 57. Kf2 {[%emt 0:00:30]} Qxg5 {[%emt 0:00:30]} 58. hxg5 {[%emt 0:00:30]} a4 {[%emt 0:00:30]} 59. g6+ {[%emt 0:00:30]} Kg7 {[%emt 0:00:30]} 60. Nxh5+ {[%emt 0:00:30]} Kf8 {[%emt 0:00:30]} 61. Nf4 {[%emt 0:00:30]} a3 {[%emt 0:00:30]} 62. Ne6+ {[%emt 0:00:06]} Bxe6 {[%emt 0:00:50]} 63. dxe6 {[%emt 0:00:30]} a2 {[%emt 0:00:30]} 64. f6 {[%emt 0:00:30]} a1=Q {[%emt 0:00:00]} 65. e7+ {[%emt 0:00:30]} Ke8 {[%emt 0:00:00]} 66. g7 {[%emt 0:00:30]} Qa2+ {[%emt 0:00:00]} 67. Kf3 {[%emt 0:00:00]} Qe6 {[%emt 0:00:00]} 0-1

[Event "8th Mersin Open 2024"]
[Site "Mersin"]
[Date "2024.11.13"]
[Round "6"]
[White "Turker, Esat Tuna"]
[Black "Uzdemir, Ali Poyraz"]
[Result "1/2-1/2"]
[ECO "E10"]
[WhiteElo "2050"]
[BlackElo "2081"]
[Annotator "NA RC"]
[PlyCount "80"]
[EventDate "2024.11.10"]
[EventType "swiss"]
[EventCountry "TUR"]
[SourceTitle "playchess.com"]
[Source "ChessBase"]
[SourceQuality "1"]
[TimeControl "5400+30"]

1. d4 {[%emt 0:01:00]} Nf6 {[%emt 0:01:00]} 2. c4 {[%emt 0:00:30]} e6 {[%emt 0:00:30]} 3. Nf3 {[%emt 0:00:00]} c5 {[%emt 0:00:00]} 4. d5 {[%emt 0:00:00]} exd5 {[%emt 0:00:00]} 5. cxd5 {[%emt 0:00:30]} d6 {[%emt 0:00:00]} 6. e4 {[%emt 0:00:30]} g6 {[%emt 0:00:00]} 7. Bd3 {[%emt 0:00:30]} Bg7 {[%emt 0:00:00]} 8. h3 {[%emt 0:00:30]} O-O {[%emt 0:01:00]} 9. O-O {[%emt 0:00:30]} a6 {[%emt 0:00:00]} 10. a4 {[%emt 0:04:30]} Nbd7 {[%emt 0:02:00]} 11. Nbd2 {[%emt 0:08:30]} Rb8 {[%emt 0:09:30]} 12. Nc4 {[%emt 0:01:30]} Qe7 {[%emt 0:00:30]} 13. a5 {[%emt 0:05:30]} b5 {[%emt 0:06:30]} 14. axb6 {[%emt 0:01:30]} Nxb6 {[%emt 0:00:00]} 15. Na5 {[%emt 0:00:00]} Qc7 {[%emt 0:00:00]} 16. Nd2 {[%emt 0:15:00]} Bd7 {[%emt 0:10:30]} 17. Qc2 {[%emt 0:00:30]} Rfe8 {[%emt 0:00:30]} 18. Ra2 {[%emt 0:09:30]} Nh5 {[%emt 0:10:30]} 19. f4 {[%emt 0:04:30]} f5 {[%emt 0:05:30]} 20. Kh2 {[%emt 0:21:30]} fxe4 {[%emt 0:11:30]} 21. Nxe4 {[%emt 0:00:30]} Bf5 {[%emt 0:23:59]} 22. Ng5 {[%emt 0:05:11]} Qd7 {[%emt 0:06:12]} 23. g4 {[%emt 0:10:23]} Bxd3 {[%emt 0:00:35]} 24. Qxd3 {[%emt 0:00:06]} Nf6 {[%emt 0:00:26]} 25. f5 {[%emt 0:01:55]} Qe7 {[%emt 0:01:09]} 26. Ne6 {[%emt 0:00:51]} Qd7 {[%emt 0:04:08]} 27. Bd2 {[%emt 0:05:06]} Nfxd5 {[%emt 0:02:15]} 28. Nc4 {[%emt 0:01:33]} Nxc4 {[%emt 0:02:56]} 29. Qxd5 {[%emt 0:02:27]} Nb6 {[%emt 0:00:07]} 30. Qf3 {[%emt 0:00:00]} Rxe6 {[%emt 0:00:56]} 31. fxe6 {[%emt 0:00:27]} Qxe6 {[%emt 0:00:00]} 32. Rxa6 {[%emt 0:00:20]} Rf8 {[%emt 0:01:17]} 33. Qd3 {[%emt 0:00:57]} Rxf1 {[%emt 0:02:16]} 34. Qxf1 {[%emt 0:00:12]} Be5+ {[%emt 0:00:33]} 35. Kh1 {[%emt 0:00:35]} Qd5+ {[%emt 0:01:00]} 36. Qg2 {[%emt 0:00:04]} Qb3 {[%emt 0:00:22]} 37. Bc3 {[%emt 0:01:14]} Qd1+ {[%emt 0:00:59]} 38. Qg1 {[%emt 0:00:05]} Qf3+ {[%emt 0:00:16]} 39. Qg2 {[%emt 0:00:30]} Qd1+ {[%emt 0:00:30]} 40. Qg1 {[%emt 0:00:00]} Qf3+ {[%emt 0:00:00]} 1/2-1/2

[Event "8th Mersin Open 2024"]
[Site "Mersin"]
[Date "2024.11.13"]
[Round "6"]
[White "Gulsoy, Mustafa Alpago"]
[Black "Sanz Wawer, Daniel"]
[Result "*"]
[ECO "B13"]
[WhiteElo "2040"]
[BlackElo "2254"]
[Annotator "RC"]
[PlyCount "44"]
[EventDate "2024.11.10"]
[EventType "swiss"]
[EventCountry "TUR"]
[SourceTitle "playchess.com"]
[Source "ChessBase"]
[SourceQuality "1"]
[TimeControl "5400+30"]

1. e4 {[%emt 0:01:00]} c6 {[%emt 0:01:00]} 2. d4 {[%emt 0:00:30]} d5 {[%emt 0:00:00]} 3. exd5 {[%emt 0:00:00]} cxd5 {[%emt 0:00:00]} 4. Bd3 {[%emt 0:00:00]} Nc6 {[%emt 0:00:30]} 5. c3 {[%emt 0:00:30]} Nf6 {[%emt 0:00:30]} 6. Bf4 {[%emt 0:00:00]} g6 {[%emt 0:00:30]} 7. Nd2 {[%emt 0:01:00]} Bf5 {[%emt 0:00:30]} 8. Bxf5 {[%emt 0:00:30]} gxf5 {[%emt 0:00:30]} 9. Ngf3 {[%emt 0:00:00]} Rg8 {[%emt 0:00:30]} 10. O-O {[%emt 0:03:00]} e6 {[%emt 0:01:30]} 11. Re1 {[%emt 0:02:30]} Bd6 {[%emt 0:22:30]} 12. Ne5 {[%emt 0:04:30]} Bxe5 {[%emt 0:03:30]} 13. dxe5 {[%emt 0:06:30]} Ne4 {[%emt 0:12:30]} 14. Nxe4 {[%emt 0:06:30]} fxe4 {[%emt 0:00:30]} 15. c4 {[%emt 0:00:30]} Qd7 {[%emt 0:00:30]} 16. Rc1 {[%emt 0:00:30]} Nb4 {[%emt 0:00:30]} 17. Qh5 {[%emt 0:16:30]} Nd3 {[%emt 0:09:30]} 18. Qxh7 {[%emt 0:03:30]} O-O-O {[%emt 0:00:30]} 19. cxd5+ {[%emt 0:01:30]} Kb8 {[%emt 0:02:30]} 20. d6 {[%emt 0:14:30]} Nxf4 {[%emt 0:06:30]} 21. Rc7 {[%emt 0:03:30]} Qb5 {[%emt 0:04:30]} 22. a4 {[%emt 0:11:30]} Qxb2 {[%emt 0:05:30]} *

[Event "8th Mersin Open 2024"]
[Site "Mersin"]
[Date "2024.11.13"]
[Round "6"]
[White "Golshaani, Taha"]
[Black "Saygin, Nurettin"]
[Result "1/2-1/2"]
[ECO "B90"]
[WhiteElo "2026"]
[BlackElo "2066"]
[Annotator "NA RC"]
[PlyCount "139"]
[EventDate "2024.11.10"]
[EventType "swiss"]
[EventCountry "TUR"]
[SourceTitle "playchess.com"]
[Source "ChessBase"]
[SourceQuality "1"]
[TimeControl "5400+30"]

1. e4 {[%emt 0:05:00]} c5 {[%emt 0:01:00]} 2. Nf3 {[%emt 0:00:00]} d6 {[%emt 0:00:30]} 3. d4 {[%emt 0:00:00]} cxd4 {[%emt 0:00:30]} 4. Nxd4 {[%emt 0:00:30]} Nf6 {[%emt 0:00:30]} 5. Nc3 {[%emt 0:00:30]} a6 {[%emt 0:00:30]} 6. Be3 {[%emt 0:00:30]} e5 {[%emt 0:00:30]} 7. Nb3 {[%emt 0:00:30]} Be6 {[%emt 0:00:30]} 8. Qd2 {[%emt 0:00:30]} Be7 {[%emt 0:00:00]} 9. f3 {[%emt 0:00:00]} Nbd7 {[%emt 0:00:00]} 10. O-O-O {[%emt 0:02:00]} O-O {[%emt 0:00:00]} 11. g4 {[%emt 0:00:30]} b5 {[%emt 0:00:00]} 12. g5 {[%emt 0:00:00]} b4 {[%emt 0:00:00]} 13. Ne2 {[%emt 0:00:00]} Nh5 {[%emt 0:00:00]} 14. Ng3 {[%emt 0:00:30]} Nxg3 {[%emt 0:00:30]} 15. hxg3 {[%emt 0:00:30]} a5 {[%emt 0:00:30]} 16. Bb5 {[%emt 0:07:30]} a4 {[%emt 0:01:30]} 17. Rxh7 {[%emt 0:19:30]} Kxh7 {[%emt 0:01:30]} 18. Qh2+ {[%emt 0:01:30]} Kg6 {[%emt 0:00:30]} 19. f4 {[%emt 0:00:30]} f5 {[%emt 0:07:30]} 20. gxf6 {[%emt 0:00:30]} Nxf6 {[%emt 0:11:30]} 21. f5+ {[%emt 0:02:30]} Bxf5 {[%emt 0:00:30]} 22. exf5+ {[%emt 0:00:30]} Kf7 {[%emt 0:00:30]} 23. Nc5 {[%emt 0:00:30]} Rh8 {[%emt 0:00:30]} 24. Qg2 {[%emt 0:17:30]} dxc5 {[%emt 0:12:30]} 25. Bc4+ {[%emt 0:02:30]} Kf8 {[%emt 0:00:30]} 26. Rxd8+ {[%emt 0:00:30]} Rxd8 {[%emt 0:00:30]} 27. g4 {[%emt 0:10:30]} Nxg4 {[%emt 0:16:30]} 28. Qxg4 {[%emt 0:12:25]} Rh1+ {[%emt 0:00:30]} 29. Bg1 {[%emt 0:00:42]} Rh4 {[%emt 0:00:30]} 30. Qg2 {[%emt 0:05:44]} Rxc4 {[%emt 0:00:30]} 31. b3 {[%emt 0:00:50]} axb3 {[%emt 0:01:30]} 32. axb3 {[%emt 0:00:04]} Rf4 {[%emt 0:01:30]} 33. Qh3 {[%emt 0:01:13]} Rh4 {[%emt 0:01:30]} 34. Qg2 {[%emt 0:01:51]} Rh6 {[%emt 0:05:30]} 35. Be3 {[%emt 0:01:58]} Ra6 {[%emt 0:01:30]} 36. Kb2 {[%emt 0:04:50]} e4 {[%emt 0:01:30]} 37. Bg5 {[%emt 0:00:44]} Bxg5 {[%emt 0:04:30]} 38. Qxg5 {[%emt 0:00:23]} Re8 {[%emt 0:01:30]} 39. Qe3 {[%emt 0:01:50]} Rc6 {[%emt 0:00:30]} 40. Kc1 {[%emt 0:01:32]} Kg8 {[%emt 0:04:30]} 41. Kd1 {[%emt 0:00:33]} Rc7 {[%emt 0:01:30]} 42. Ke2 {[%emt 0:00:32]} c4 {[%emt 0:01:30]} 43. Qb6 {[%emt 0:00:49]} Rf7 {[%emt 0:00:30]} 44. Qb5 {[%emt 0:00:54]} Rc8 {[%emt 0:00:30]} 45. bxc4 {[%emt 0:00:20]} Rfc7 {[%emt 0:01:30]} 46. Qd5+ {[%emt 0:00:15]} Kh8 {[%emt 0:00:30]} 47. Qxe4 {[%emt 0:00:22]} Rc5 {[%emt 0:03:30]} 48. Kd2 {[%emt 0:00:45]} Rf8 {[%emt 0:01:05]} 49. Qb7 {[%emt 0:00:24]} Rfxf5 {[%emt 0:01:10]} 50. Qxb4 {[%emt 0:00:01]} Kh7 {[%emt 0:00:01]} 51. Kd3 {[%emt 0:00:31]} Rh5 {[%emt 0:00:22]} 52. Qe1 {[%emt 0:00:24]} Rce5 {[%emt 0:00:29]} 53. Qg3 {[%emt 0:00:52]} Reg5 {[%emt 0:00:13]} 54. Qe3 {[%emt 0:00:12]} Ra5 {[%emt 0:00:55]} 55. Qe4+ {[%emt 0:00:16]} Kh6 {[%emt 0:00:47]} 56. Qf4+ {[%emt 0:00:18]} Kg6 {[%emt 0:00:31]} 57. Qg4+ {[%emt 0:00:28]} Rhg5 {[%emt 0:00:59]} 58. Qe6+ {[%emt 0:00:12]} Kh7 {[%emt 0:00:00]} 59. Qe4+ {[%emt 0:00:59]} Rgf5 {[%emt 0:00:22]} 60. Qh4+ {[%emt 0:00:00]} Kg8 {[%emt 0:00:43]} 61. Qd8+ {[%emt 0:00:08]} Kf7 {[%emt 0:00:00]} 62. Qd7+ {[%emt 0:00:22]} Kf6 {[%emt 0:00:20]} 63. Qd8+ {[%emt 0:00:27]} Kg6 {[%emt 0:00:26]} 64. Qd6+ {[%emt 0:00:27]} Rf6 {[%emt 0:00:29]} 65. Qe7 {[%emt 0:00:36]} Rff5 {[%emt 0:01:01]} 66. Qe8+ {[%emt 0:00:30]} Kh7 {[%emt 0:00:30]} 67. Qe7 {[%emt 0:00:30]} Rg5 {[%emt 0:00:30]} 68. Kd4 {[%emt 0:00:30]} Rg4+ {[%emt 0:00:11]} 69. Kc3 {[%emt 0:01:05]} Rgg5 {[%emt 0:00:30]} 70. Kd4 {[%emt 0:00:25]} 1/2-1/2

[Event "8th Mersin Open 2024"]
[Site "Mersin"]
[Date "2024.11.13"]
[Round "6"]
[White "Karabulut, Etka"]
[Black "Koksal, Ege"]
[Result "1/2-1/2"]
[ECO "D61"]
[WhiteElo "2024"]
[BlackElo "2316"]
[Annotator "RC"]
[PlyCount "80"]
[EventDate "2024.11.10"]
[EventType "swiss"]
[EventCountry "TUR"]
[SourceTitle "playchess.com"]
[Source "ChessBase"]
[SourceQuality "1"]
[TimeControl "5400+30"]

1. d4 {[%emt 0:01:00]} Nf6 {[%emt 0:01:00]} 2. c4 {[%emt 0:00:30]} e6 {[%emt 0:00:30]} 3. Nf3 {[%emt 0:00:30]} d5 {[%emt 0:00:30]} 4. Nc3 {[%emt 0:00:00]} c6 {[%emt 0:00:00]} 5. Bg5 {[%emt 0:03:00]} Be7 {[%emt 0:00:00]} 6. e3 {[%emt 0:00:30]} O-O {[%emt 0:00:30]} 7. Qc2 {[%emt 0:03:30]} Nbd7 {[%emt 0:00:00]} 8. cxd5 {[%emt 0:00:00]} Nxd5 {[%emt 0:12:00]} 9. Bxe7 {[%emt 0:01:00]} Qxe7 {[%emt 0:00:00]} 10. Nxd5 {[%emt 0:05:30]} exd5 {[%emt 0:00:00]} 11. Bd3 {[%emt 0:00:30]} Nf6 {[%emt 0:00:30]} 12. O-O {[%emt 0:00:30]} g6 {[%emt 0:20:30]} 13. Rac1 {[%emt 0:03:30]} Be6 {[%emt 0:02:30]} 14. Qc5 {[%emt 0:11:30]} Qxc5 {[%emt 0:02:30]} 15. Rxc5 {[%emt 0:00:30]} Nd7 {[%emt 0:00:30]} 16. Rc3 {[%emt 0:00:30]} Rfc8 {[%emt 0:00:30]} 17. Rfc1 {[%emt 0:00:30]} Kf8 {[%emt 0:00:30]} 18. Kf1 {[%emt 0:00:30]} Ke7 {[%emt 0:00:30]} 19. Ke1 {[%emt 0:00:30]} Kd6 {[%emt 0:06:30]} 20. Nd2 {[%emt 0:17:30]} a5 {[%emt 0:09:30]} 21. a4 {[%emt 0:14:30]} h6 {[%emt 0:01:30]} 22. Nb3 {[%emt 0:03:30]} g5 {[%emt 0:09:30]} 23. Ke2 {[%emt 0:09:30]} Rc7 {[%emt 0:04:30]} 24. Nc5 {[%emt 0:02:30]} Nxc5 {[%emt 0:04:30]} 25. Rxc5 {[%emt 0:00:00]} Rcc8 {[%emt 0:24:30]} 26. R5c3 {[%emt 0:00:00]} Rab8 {[%emt 0:00:30]} 27. Kd2 {[%emt 0:00:30]} Bd7 {[%emt 0:00:30]} 28. Ke1 {[%emt 0:00:30]} b6 {[%emt 0:00:30]} 29. Ba6 {[%emt 0:00:30]} Rc7 {[%emt 0:00:30]} 30. Bb5 {[%emt 0:00:30]} Rbb7 {[%emt 0:00:30]} 31. Ba6 {[%emt 0:00:30]} Ra7 {[%emt 0:00:30]} 32. Be2 {[%emt 0:00:30]} c5 {[%emt 0:00:30]} 33. b3 {[%emt 0:00:30]} Bc8 {[%emt 0:00:30]} 34. Kd2 {[%emt 0:00:30]} Ba6 {[%emt 0:00:30]} 35. Bxa6 {[%emt 0:00:30]} Rxa6 {[%emt 0:00:30]} 36. Kd3 {[%emt 0:00:30]} f5 {[%emt 0:00:30]} 37. h4 {[%emt 0:00:30]} Raa7 {[%emt 0:00:30]} 38. Rh1 {[%emt 0:00:30]} Rh7 {[%emt 0:00:30]} 39. g3 {[%emt 0:00:30]} Rab7 {[%emt 0:00:30]} 40. Rc2 {[%emt 0:00:30]} f4 {[%emt 0:00:30]} 1/2-1/2

[Event "8th Mersin Open 2024"]
[Site "Mersin"]
[Date "2024.11.13"]
[Round "6"]
[White "Norouzi Chenari, Parham"]
[Black "Ozturk, Baran"]
[Result "1-0"]
[ECO "B41"]
[WhiteElo "1899"]
[BlackElo "1853"]
[Annotator "NA RC"]
[PlyCount "76"]
[EventDate "2024.11.10"]
[EventType "swiss"]
[EventCountry "TUR"]
[SourceTitle "playchess.com"]
[Source "ChessBase"]
[SourceQuality "1"]
[TimeControl "5400+30"]

1. e4 {[%emt 0:11:00]} c5 {[%emt 0:01:00]} 2. Nf3 {[%emt 0:00:30]} a6 {[%emt 0:00:30]} 3. c4 {[%emt 0:00:00]} Nc6 {[%emt 0:01:30]} 4. d4 {[%emt 0:01:00]} cxd4 {[%emt 0:00:00]} 5. Nxd4 {[%emt 0:00:00]} Qc7 {[%emt 0:00:00]} 6. Nc3 {[%emt 0:02:00]} e6 {[%emt 0:00:30]} 7. Nc2 {[%emt 0:04:30]} Nf6 {[%emt 0:01:30]} 8. Be2 {[%emt 0:00:30]} Bd6 {[%emt 0:10:30]} 9. Bg5 {[%emt 0:08:30]} Be5 {[%emt 0:01:30]} 10. Bxf6 {[%emt 0:03:30]} Bxf6 {[%emt 0:02:30]} 11. O-O {[%emt 0:00:30]} O-O {[%emt 0:03:30]} 12. Qd2 {[%emt 0:01:30]} b6 {[%emt 0:03:30]} 13. Rad1 {[%emt 0:03:30]} Rd8 {[%emt 0:03:30]} 14. f4 {[%emt 0:01:30]} d6 {[%emt 0:02:30]} 15. Bf3 {[%emt 0:00:30]} Bb7 {[%emt 0:03:30]} 16. b3 {[%emt 0:20:30]} b5 {[%emt 0:03:30]} 17. Ne3 {[%emt 0:09:30]} Na5 {[%emt 0:07:30]} 18. Ng4 {[%emt 0:02:30]} Bxc3 {[%emt 0:04:30]} 19. Qxc3 {[%emt 0:00:00]} bxc4 {[%emt 0:00:00]} 20. b4 {[%emt 0:01:00]} Nc6 {[%emt 0:03:00]} 21. Qxc4 {[%emt 0:01:30]} Qb6+ {[%emt 0:01:30]} 22. Kh1 {[%emt 0:00:30]} Rac8 {[%emt 0:00:30]} 23. Qb3 {[%emt 0:05:30]} Qb5 {[%emt 0:04:30]} 24. f5 {[%emt 0:01:30]} exf5 {[%emt 0:03:30]} 25. Ne3 {[%emt 0:02:06]} Ne7 {[%emt 0:15:30]} 26. exf5 {[%emt 0:01:31]} Bxf3 {[%emt 0:00:30]} 27. Rxf3 {[%emt 0:00:36]} d5 {[%emt 0:00:30]} 28. f6 {[%emt 0:00:54]} gxf6 {[%emt 0:03:30]} 29. Ng4 {[%emt 0:01:00]} Ng6 {[%emt 0:00:30]} 30. Qe3 {[%emt 0:01:11]} Rc6 {[%emt 0:01:03]} 31. Nh6+ {[%emt 0:01:19]} Kf8 {[%emt 0:00:56]} 32. Nf5 {[%emt 0:01:32]} Ne5 {[%emt 0:01:35]} 33. Rg3 {[%emt 0:05:50]} Ke8 {[%emt 0:03:20]} 34. Rg8+ {[%emt 0:00:55]} Kd7 {[%emt 0:00:47]} 35. Rxd8+ {[%emt 0:01:18]} Kxd8 {[%emt 0:00:30]} 36. Nd4 {[%emt 0:00:00]} Qa4 {[%emt 0:00:57]} 37. Nxc6+ {[%emt 0:00:26]} Qxc6 {[%emt 0:00:00]} 38. Qc5 {[%emt 0:00:00]} Qb5 {[%emt 0:02:32]} 1-0